bitfinex-derivatives/quotes_BTCF0:USTF0_20210109
["timestamp","ask_amount","ask_price","bid_price","bid_amount"]
[1610167227356,4.12302,40347.0,40336.0,0.00025466]
[1610167227556,0.24978608,40337.0,40327.0,0.13632608]
[1610167227757,0.11346,40337.0,40327.0,0.13632608]
[1610167227956,0.11346,40337.0,40328.0,0.02381124]
[1610167228157,0.11346,40337.0,40328.0,0.52381124]
[1610167228356,0.11346,40337.0,40329.0,0.5]
[1610167228557,0.11346,40337.0,40329.0,0.52381192]
[1610167228757,0.11346,40337.0,40330.0,0.02381175]
[1610167229156,0.10156,40337.0,40331.0,0.5]
[1610167229558,0.10156,40337.0,40336.0,0.13632608]
[1610167229959,0.10156,40337.0,40336.0,0.63632608]
[1610167230158,0.10156,40337.0,40336.0,0.63658073]
[1610167230559,0.10156,40337.0,40336.0,0.13658073]
[1610167230759,0.10156,40337.0,40336.0,0.63658073]
[1610167230959,0.10156,40337.0,40336.0,0.63632608]
[1610167231159,0.10156,40337.0,40336.0,0.63658074]
[1610167231360,0.10156,40337.0,40336.0,0.6368354]
[1610167232363,0.08966,40337.0,40336.0,0.6368354]
[1610167232562,0.12742,40347.0,40336.0,0.63658074]
[1610167232762,0.2832,40355.0,40336.0,0.63658074]
[1610167232763,0.2832,40355.0,40336.0,0.6368354]
[1610167232962,0.09099,40357.0,40337.0,0.50025466]
[1610167233163,0.09099,40357.0,40353.0,3.0038]
[1610167233363,0.01513249,40363.0,40354.0,0.5]
[1610167233562,0.01513249,40363.0,40357.0,3.3057]
[1610167233763,0.09646,40369.0,40357.0,3.3057]
[1610167233963,0.01512152,40376.0,40357.0,3.3057]
[1610167234164,0.2849,40379.0,40358.0,0.50025451]
[1610167234565,0.2849,40379.0,40357.0,3.3057]
[1610167234566,0.2849,40379.0,40359.0,0.50025446]
[1610167234766,0.2849,40379.0,40378.0,0.13632608]
[1610167235167,0.2849,40379.0,40378.0,0.63658049]
[1610167235369,0.2734,40379.0,40378.0,0.63658049]
[1610167236970,0.2734,40379.0,40378.0,4.25898049]
[1610167238372,0.2618,40379.0,40378.0,4.25898049]
[1610167240974,0.2618,40379.0,40378.0,0.63658049]
[1610167241374,0.2502,40379.0,40378.0,0.50025441]
[1610167241774,0.2502,40379.0,40378.0,0.5]
[1610167242677,1.15266616,40379.0,40378.0,0.5]
[1610167242875,1.28899224,40379.0,40378.0,0.5]
[1610167244276,0.38652608,40379.0,40378.0,0.5]
[1610167244476,0.37442608,40379.0,40378.0,0.5]
[1610167245876,0.91354862,40379.0,40378.0,0.5]
[1610167246377,1.27689549,40379.0,40378.0,0.5]
[1610167247479,1.14056941,40379.0,40378.0,1.0345]
[1610167247678,1.12856941,40379.0,40378.0,1.0345]
[1610167248278,0.2261,40379.0,40378.0,1.0345]
[1610167249080,0.2261,40379.0,40378.0,0.5]
[1610167249279,0.2261,40379.0,40378.0,0.50025445]
[1610167250684,0.2146,40379.0,40378.0,0.50025445]
[1610167251082,0.2146,40379.0,40378.0,0.5]
[1610167252684,0.2146,40379.0,40378.0,4.01305448]
[1610167253084,0.2146,40379.0,40378.0,4.0128]
[1610167253485,0.2146,40379.0,40378.0,4.01305448]
[1610167253684,0.2027,40379.0,40378.0,4.01305448]
[1610167256992,0.19,40379.0,40378.0,4.01305448]
[1610167259997,0.1785,40379.0,40378.0,4.01305448]
[1610167263098,0.167,40379.0,40378.0,4.01305448]
[1610167266003,0.1554,40379.0,40378.0,4.01305448]
[1610167268805,0.1554,40379.0,40378.0,0.50025448]
[1610167269007,0.29172608,40379.0,40378.0,0.50025448]
[1610167269208,0.27982608,40379.0,40378.0,0.50025448]
[1610167269407,1.63393655,40379.0,40378.0,0.50025448]
[1610167269807,2.29444274,40379.0,40378.0,0.50025448]
[1610167270608,3.04503476,40379.0,40378.0,0.50025448]
[1610167270808,6.44773789,40379.0,40378.0,0.50025448]
[1610167271012,6.44773789,40379.0,40378.0,0.5]
[1610167271013,6.08440044,40379.0,40378.0,0.5]
[1610167271208,6.08440044,40379.0,40378.0,0.19884575]
[1610167271209,6.92510557,40379.0,40378.0,0.19884575]
[1610167271413,7.83368527,40379.0,40378.0,0.19884575]
[1610167272210,7.82178527,40379.0,40378.0,0.19884575]
[1610167272608,4.41938527,40379.0,40378.0,0.19884575]
[1610167273009,3.87423745,40379.0,40378.0,0.19884575]
[1610167273410,3.87423745,40379.0,40378.0,0.19909972]
[1610167273809,3.03353232,40379.0,40378.0,0.19909972]
[1610167275310,3.02142919,40379.0,40378.0,0.19884575]
[1610167275710,3.86165985,40379.0,40378.0,0.19884575]
[1610167276110,3.02142919,40379.0,40378.0,0.19884575]
[1610167276510,3.86164759,40379.0,40378.0,0.19884575]
[1610167278412,3.84964759,40379.0,40378.0,0.19884575]
[1610167278812,4.09877352,40379.0,40378.0,0.19884575]
[1610167280215,5.14967778,40379.0,40378.0,0.12310554]
[1610167280417,5.14967778,40379.0,40291.0,1.6556]
[1610167280616,3.0928,40371.0,40321.0,3.2722]
[1610167280817,0.840416,40365.0,40364.0,0.5]
[1610167281017,0.950106,40365.0,40322.0,0.02362709]
[1610167281217,6.52508296,40365.0,40340.0,3.645]
[1610167281417,6.51348296,40365.0,40341.0,0.5]
[1610167281618,0.01515069,40344.0,40341.0,0.50025424]
[1610167281819,0.01515049,40342.0,40341.0,0.5]
[1610167282018,0.01515049,40342.0,40340.0,3.645]
[1610167282219,0.01515049,40342.0,40341.0,0.5]
[1610167283021,0.4499835,40342.0,40341.0,0.5]
[1610167283219,0.58630958,40342.0,40341.0,0.63632608]
[1610167283621,0.15146329,40342.0,40341.0,0.63632608]
[1610167283820,0.15146329,40342.0,40341.0,0.5]
[1610167284021,1.48953488,40342.0,40341.0,0.5]
[1610167284522,1.47763488,40342.0,40341.0,0.5]
[1610167285724,0.48809375,40342.0,40341.0,0.5]
[1610167285925,1.47652209,40342.0,40341.0,0.5]
[1610167286325,1.11285442,40342.0,40341.0,0.5]
[1610167286925,1.47655269,40342.0,40341.0,0.5]
[1610167287926,0.12723145,40342.0,40341.0,0.5]
[1610167288127,0.11212608,40342.0,40341.0,0.5]
[1610167288526,0.12722602,40342.0,40341.0,0.5]
[1610167289326,0.11212608,40342.0,40341.0,0.5]
[1610167290929,0.10032608,40342.0,40341.0,0.5]
[1610167291329,0.11541699,40342.0,40341.0,0.5]
[1610167291931,0.54859248,40342.0,40341.0,0.5]
[1610167293535,1.44977779,40342.0,40341.0,0.5]
[1610167293934,1.43817779,40342.0,40341.0,0.5]
[1610167294335,0.53699248,40342.0,40341.0,0.5]
[1610167294735,1.07427742,40342.0,40341.0,0.5]
[1610167295340,1.4380035,40342.0,40341.0,0.5]
[1610167296136,0.53699248,40342.0,40341.0,0.5]
[1610167296538,0.08872608,40342.0,40341.0,0.5]
[1610167296938,0.09218989,40342.0,40341.0,0.5]
[1610167297738,0.52471546,40342.0,40341.0,0.5]
[1610167297942,4.34721546,40342.0,40341.0,0.5]
[1610167298141,5.24801525,40342.0,40341.0,0.49848452]
[1610167299944,5.23641866,40342.0,40341.0,0.49848452]
[1610167300142,5.23641866,40342.0,40341.0,0.06480452]
[1610167300342,6.4384239,40342.0,40341.0,0.06480452]
[1610167300742,6.4384239,40342.0,40312.0,2.8657]
[1610167300743,7.18419171,40342.0,40312.0,2.8657]
[1610167301143,3.88802949,40342.0,40341.0,0.5]
[1610167301343,3.8225,40342.0,40313.0,0.13632608]
[1610167301542,3.82280345,40342.0,40341.0,0.5]
[1610167301743,0.00030345,40341.0,40314.0,0.5]
[1610167301943,0.00030345,40341.0,40313.0,0.13632608]
[1610167302145,0.00030345,40341.0,40315.0,0.5]
[1610167302342,0.44728143,40330.0,40314.0,0.5]
[1610167302542,0.53335143,40330.0,40314.0,0.5]
[1610167302743,0.53335143,40330.0,40316.0,0.5]
[1610167302944,0.53335143,40330.0,40315.0,0.5]
[1610167303147,0.01505351,40327.0,40317.0,0.5]
[1610167303344,0.25790608,40318.0,40314.0,0.5]
[1610167303546,0.12158,40318.0,40314.0,0.5]
[1610167303747,0.12158,40318.0,40317.0,0.5]
[1610167304246,0.12158,40318.0,40314.0,0.5]
[1610167304447,0.12158,40318.0,40317.0,0.5]
[1610167304646,0.12158,40318.0,40315.0,0.5]
[1610167304847,0.12158,40318.0,40314.0,0.5]
[1610167305047,0.12158,40318.0,40316.0,0.5]
[1610167305246,0.12158,40318.0,40315.0,0.5]
[1610167305447,0.12158,40318.0,40317.0,0.00025435]
[1610167305846,0.12158,40318.0,40317.0,0.5]
[1610167306046,0.12158,40318.0,40316.0,0.00025435]
[1610167306047,0.12158,40318.0,40315.0,0.5]
[1610167306247,0.10968,40318.0,40315.0,0.5]
[1610167306448,0.10968,40318.0,40317.0,0.5]
[1610167306648,0.10968,40318.0,40316.0,0.5]
[1610167307051,0.10968,40318.0,40317.0,0.5]
[1610167307250,0.10968,40318.0,40314.0,0.5]
[1610167307450,0.10968,40318.0,40317.0,0.5]
[1610167307649,0.10968,40318.0,40315.0,0.5]
[1610167307850,0.10968,40318.0,40314.0,0.5]
[1610167308049,0.10968,40318.0,40316.0,0.5]
[1610167308251,0.10968,40318.0,40314.0,0.5]
[1610167308449,0.13632608,40319.0,40317.0,0.5]
[1610167308850,0.13632608,40319.0,40315.0,0.5]
[1610167309051,0.13632608,40319.0,40318.0,0.5]
[1610167309251,0.12432608,40319.0,40316.0,0.5]
[1610167309452,0.12432608,40319.0,40318.0,0.5]
[1610167309653,0.12432608,40319.0,40317.0,0.5]
[1610167310055,0.22529608,40319.0,40314.0,0.5]
[1610167310255,0.22529608,40319.0,40318.0,0.5]
[1610167310555,0.22529608,40319.0,40315.0,0.5]
[1610167310756,0.22529608,40319.0,40316.0,0.5]
[1610167311256,0.22529608,40319.0,40314.0,0.5]
[1610167311658,0.22529608,40319.0,40315.0,0.5]
[1610167312060,0.00030345,40318.0,40314.0,0.5]
[1610167312260,0.00030345,40318.0,40316.0,0.5]
[1610167312460,0.21379953,40319.0,40315.0,0.5]
[1610167312861,0.21379953,40319.0,40314.0,0.5]
[1610167313062,0.16130501,40318.0,40316.0,0.5]
[1610167313265,0.16130501,40318.0,40315.0,0.5]
[1610167313461,3.5989,40317.0,40315.0,0.5]
[1610167313663,3.5992035,40317.0,40303.0,0.13632608]
[1610167313864,3.5989,40317.0,40316.0,0.5]
[1610167314062,3.5989,40317.0,40304.0,0.50025445]
[1610167314263,3.5989,40317.0,40316.0,0.5]
[1610167314462,3.5989,40317.0,40305.0,0.50025445]
[1610167314663,3.59920351,40317.0,40316.0,0.5]
[1610167314862,3.5989,40317.0,40316.0,0.5]
[1610167315063,3.5989,40317.0,40304.0,0.5]
[1610167315263,0.13632608,40305.0,40304.0,0.5]
[1610167315463,0.12452608,40305.0,40303.0,0.13632608]
[1610167315866,0.22275608,40305.0,40304.0,0.5]
[1610167318566,0.21085608,40305.0,40304.0,0.5]
[1610167321269,0.09823,40305.0,40304.0,0.5]
[1610167321670,0.13632608,40311.0,40304.0,0.5]
[1610167321869,0.13632608,40311.0,40303.0,0.13632608]
[1610167321870,0.13632608,40311.0,40305.0,0.5]
[1610167322371,0.13632608,40311.0,40304.0,0.5]
[1610167322572,0.13632608,40311.0,40306.0,0.5]
[1610167322773,0.13632608,40311.0,40305.0,0.5]
[1610167323173,0.13632608,40311.0,40304.0,0.5]
[1610167323376,3.5989,40317.0,40308.0,0.13632608]
[1610167323773,3.5989,40317.0,40309.0,0.5]
[1610167324174,3.5989,40317.0,40310.0,0.5]
[1610167324374,3.5989,40317.0,40309.0,0.5]
[1610167324874,3.587,40317.0,40309.0,0.5]
[1610167325074,3.587,40317.0,40310.0,0.5]
[1610167325376,0.13632608,40311.0,40310.0,0.5]
[1610167325584,0.13632608,40311.0,40309.0,0.5]
[1610167325775,0.17607257,40318.0,40310.0,0.5]
[1610167325978,0.16100153,40318.0,40314.0,2.9248]
[1610167326577,0.16100153,40318.0,40315.0,0.50025242]
[1610167326976,0.16100153,40318.0,40316.0,0.50025239]
[1610167327378,0.16100153,40318.0,40317.0,0.13632608]
[1610167327576,0.16100153,40318.0,40317.0,0.13657847]
[1610167327777,0.14940153,40318.0,40317.0,0.63657847]
[1610167329479,0.28572761,40318.0,40317.0,0.63657847]
[1610167329678,0.14940153,40318.0,40317.0,0.63657847]
[1610167330881,0.13750153,40318.0,40317.0,0.63657847]
[1610167333882,0.11370153,40318.0,40317.0,0.63657847]
[1610167337188,0.11300153,40318.0,40317.0,0.63657847]
[1610167337387,0.24932761,40318.0,40317.0,0.63657847]
[1610167338286,0.70048608,40318.0,40317.0,0.63657847]
[1610167339491,1.60619382,40318.0,40317.0,0.63657847]
[1610167340291,1.59419382,40318.0,40317.0,0.63657847]
[1610167343896,1.58069382,40318.0,40317.0,0.63657847]
[1610167344302,1.21681457,40318.0,40317.0,0.63657847]
[1610167344497,1.08048849,40318.0,40317.0,0.63657847]
[1610167344698,0.53866,40318.0,40317.0,0.63657847]
[1610167345100,1.0812029,40318.0,40317.0,0.63657847]
[1610167345501,0.53866,40318.0,40317.0,0.63657847]
[1610167346102,0.53866,40318.0,40317.0,0.65923989]
[1610167346905,0.52676,40318.0,40317.0,0.65923989]
[1610167348102,0.52676,40318.0,40317.0,0.63657847]
[1610167348505,0.52676,40318.0,40317.0,0.65923982]
[1610167348703,1.06960424,40318.0,40317.0,0.65923982]
[1610167349002,0.52676,40318.0,40317.0,0.65923982]
[1610167349402,0.52676,40318.0,40317.0,0.63657847]
[1610167349605,1.56995693,40318.0,40317.0,0.63657847]
[1610167350102,1.55765693,40318.0,40317.0,0.63657847]
[1610167350303,1.55765693,40318.0,40317.0,0.65924117]
[1610167350704,1.55765693,40318.0,40317.0,0.63657847]
[1610167351203,1.55765693,40318.0,40317.0,0.65924103]
[1610167351905,1.42133085,40318.0,40317.0,0.65924103]
[1610167353206,1.40943085,40318.0,40317.0,0.65924103]
[1610167354208,1.40943085,40318.0,40317.0,4.33644103]
[1610167354812,0.50256,40318.0,40317.0,4.33644103]
[1610167355207,0.05140153,40318.0,40317.0,4.33644103]
[1610167355408,0.05140153,40318.0,40317.0,4.38252756]
[1610167356208,0.05140153,40318.0,40317.0,5.88252756]
[1610167356409,0.03960153,40318.0,40317.0,5.88252756]
[1610167357510,0.03960153,40318.0,40317.0,5.95450372]
[1610167358113,0.03960153,40318.0,40317.0,0.77730372]
[1610167358313,0.03960153,40318.0,40317.0,0.70532756]
[1610167359414,0.02760153,40318.0,40317.0,0.65924103]
[1610167362517,0.01560153,40318.0,40317.0,0.65924103]
[1610167363720,0.01560153,40318.0,40317.0,0.63657847]
[1610167364121,0.01560153,40318.0,40317.0,1.20177847]
[1610167364921,0.01560153,40318.0,40317.0,1.22441325]
[1610167365721,0.00370153,40318.0,40317.0,1.22441325]
[1610167368825,0.10649153,40324.0,40317.0,1.22441325]
[1610167369224,0.10649153,40324.0,40318.0,0.5]
[1610167369425,0.01520278,40329.0,40318.0,0.52288359]
[1610167369625,0.01520278,40329.0,40328.0,0.13632608]
[1610167369824,0.46692323,40329.0,40328.0,0.13632608]
[1610167370225,0.46692323,40329.0,40328.0,0.5]
[1610167370426,0.01520278,40329.0,40328.0,0.50025021]
[1610167370625,0.01520278,40329.0,40328.0,0.00025021]
[1610167370827,0.46683657,40332.0,40328.0,0.50025021]
[1610167371026,0.01520044,40330.0,40329.0,0.5]
[1610167371228,0.01520044,40330.0,40329.0,0.50025018]
[1610167371426,0.01520044,40330.0,40329.0,0.00025018]
[1610167371627,0.11312,40335.0,40329.0,0.00025018]
[1610167371628,0.46680308,40332.0,40329.0,0.00025018]
[1610167371828,0.45530308,40332.0,40331.0,0.13632608]
[1610167372028,0.45160414,40332.0,40331.0,0.13632608]
[1610167372228,0.45160414,40332.0,40331.0,0.63657626]
[1610167374834,0.9934596,40332.0,40331.0,0.63657626]
[1610167375034,0.9813596,40332.0,40331.0,0.63657626]
[1610167375236,0.43950414,40332.0,40331.0,0.63657626]
[1610167375936,0.79129041,40335.0,40331.0,0.63657626]
[1610167376335,0.79129041,40335.0,40332.0,0.5]
[1610167376537,0.79129041,40335.0,40332.0,0.50025018]
[1610167376736,0.79129041,40335.0,40333.0,0.5]
[1610167376937,0.24944608,40335.0,40333.0,0.5]
[1610167377137,0.24944608,40335.0,40333.0,0.00025018]
[1610167377338,0.79134263,40335.0,40334.0,0.50025018]
[1610167377639,0.91181343,40335.0,40334.0,0.00025018]
[1610167377841,0.91181343,40335.0,40334.0,0.50025018]
[1610167378040,1.80575067,40335.0,40334.0,0.50025018]
[1610167381141,1.79395067,40335.0,40334.0,0.50025018]
[1610167381742,2.54709145,40335.0,40334.0,0.50025018]
[1610167382642,1.64135421,40335.0,40334.0,0.50025018]
[1610167382844,2.54753196,40335.0,40334.0,0.50025018]
[1610167383247,1.43060949,40335.0,40334.0,0.50025018]
[1610167383647,2.54780385,40335.0,40334.0,0.50025018]
[1610167384249,2.53600385,40335.0,40334.0,0.50025018]
[1610167385248,1.78259558,40335.0,40334.0,0.50025018]
[1610167385649,2.5362819,40335.0,40334.0,0.50025018]
[1610167387252,1.77069558,40335.0,40334.0,0.50025018]
[1610167387852,1.77069558,40335.0,40334.0,0.63657626]
[1610167390352,1.75889558,40335.0,40334.0,0.63657626]
[1610167390753,1.75889558,40335.0,40334.0,0.65877102]
[1610167391454,1.75889558,40335.0,40334.0,0.50025018]
[1610167392254,5.91519558,40335.0,40334.0,0.50025018]
[1610167392653,6.46082478,40335.0,40334.0,0.50025018]
[1610167393254,2.30452478,40335.0,40334.0,0.50025018]
[1610167393457,2.29272478,40335.0,40334.0,0.50025018]
[1610167393854,2.50093385,40335.0,40334.0,0.50025018]
[1610167395056,3.08873385,40335.0,40334.0,0.50025018]
[1610167396556,3.07693385,40335.0,40334.0,0.50025018]
[1610167398063,3.07723732,40335.0,40334.0,0.50025018]
[1610167399161,3.07693385,40335.0,40334.0,0.50025018]
[1610167399363,3.92161751,40335.0,40334.0,0.50025018]
[1610167399564,3.32242098,40335.0,40334.0,0.50025018]
[1610167400966,3.32211751,40335.0,40334.0,0.50025018]
[1610167401167,2.47743385,40335.0,40334.0,0.50025018]
[1610167401570,3.32239079,40335.0,40334.0,0.50025018]
[1610167402668,3.31049079,40335.0,40334.0,0.50025018]
[1610167405271,3.76334868,40335.0,40334.0,0.50025018]
[1610167405672,3.75154868,40335.0,40334.0,0.50025018]
[1610167406372,3.84325868,40335.0,40334.0,0.50025018]
[1610167407674,2.99830174,40335.0,40334.0,0.50025018]
[1610167407977,2.99830174,40335.0,40334.0,0.63657626]
[1610167408777,2.98650174,40335.0,40334.0,0.63657626]
[1610167410478,2.86695566,40335.0,40334.0,3.69827626]
[1610167410878,2.11311739,40335.0,40334.0,3.69827626]
[1610167411279,1.45075004,40335.0,40334.0,3.72042963]
[1610167411679,0.09171,40335.0,40334.0,3.72042963]
[1610167411881,0.07991,40335.0,40334.0,3.72042963]
[1610167412279,0.46054337,40341.0,40334.0,3.72042963]
[1610167412479,0.46054337,40341.0,40335.0,0.5]
[1610167412879,0.46054337,40341.0,40336.0,0.5]
[1610167413078,0.00769499,40340.0,40337.0,0.5]
[1610167413279,0.00769499,40340.0,40337.0,0.52239932]
[1610167413480,0.46046011,40339.0,40338.0,0.02239891]
[1610167413679,0.46046011,40339.0,40338.0,0.52239891]
[1610167413879,0.11779,40344.0,40338.0,0.52239891]
[1610167413880,0.4604637,40340.0,40338.0,0.02239891]
[1610167414080,0.4604637,40340.0,40338.0,0.52239891]
[1610167414280,0.46044732,40339.0,40338.0,0.5]
[1610167414483,0.46044732,40339.0,40336.0,0.02239862]
[1610167414680,0.00769431,40337.0,40335.0,0.5]
[1610167414881,0.4489516,40338.0,40337.0,0.02240047]
[1610167415081,0.4489516,40338.0,40334.0,3.19802608]
[1610167415082,0.4489516,40338.0,40336.0,0.50025093]
[1610167415282,0.4489516,40338.0,40337.0,0.5]
[1610167415482,0.4489516,40338.0,40337.0,0.50025093]
[1610167415682,0.54322313,40339.0,40337.0,0.50025093]
[1610167415881,0.54322313,40339.0,40338.0,0.5]
[1610167416082,0.54320125,40340.0,40338.0,0.5]
[1610167416281,0.54320125,40340.0,40339.0,0.5]
[1610167416482,1.02753375,40343.0,40339.0,0.5]
[1610167416483,0.54312291,40342.0,40339.0,0.50025093]
[1610167416683,0.54312291,40342.0,40339.0,0.00025093]
[1610167416884,0.54312932,40341.0,40340.0,0.00025093]
[1610167417087,0.54312932,40341.0,40340.0,0.50025093]
[1610167417285,0.54312932,40341.0,40336.0,0.5]
[1610167417485,0.54312932,40341.0,40340.0,0.00025093]
[1610167417685,0.54312932,40341.0,40337.0,0.50025093]
[1610167417886,0.53162932,40341.0,40340.0,0.5]
[1610167418088,0.53162932,40341.0,40340.0,0.13632608]
[1610167418287,0.53162932,40341.0,40340.0,0.63657699]
[1610167419387,0.53162932,40341.0,40340.0,0.50025091]
[1610167419593,0.53162932,40341.0,40340.0,0.5]
[1610167419789,0.53162932,40341.0,40340.0,0.50025093]
[1610167419990,1.19554873,40341.0,40340.0,0.63657701]
[1610167420390,0.53162932,40341.0,40340.0,0.63657701]
[1610167420990,0.51932932,40341.0,40340.0,0.63657701]
[1610167421191,1.18320693,40341.0,40340.0,0.63657701]
[1610167424094,1.17120693,40341.0,40340.0,0.63657701]
[1610167427097,1.15970693,40341.0,40340.0,0.63657701]
[1610167427298,0.49582932,40341.0,40340.0,0.63657701]
[1610167427697,0.36362353,40343.0,40340.0,0.63657701]
[1610167427897,0.36362353,40343.0,40341.0,0.5]
[1610167428297,0.36362353,40343.0,40342.0,0.50025093]
[1610167428495,0.36362353,40343.0,40342.0,0.00025093]
[1610167428897,0.36362353,40343.0,40342.0,0.50025093]
[1610167430300,0.35172353,40343.0,40342.0,0.50025093]
[1610167432804,0.25411608,40344.0,40342.0,0.50025093]
[1610167433002,0.25411608,40344.0,40343.0,0.5]
[1610167433203,0.25411608,40344.0,40343.0,0.50025093]
[1610167433402,0.10589,40344.0,40343.0,0.98575093]
[1610167433603,0.36362146,40344.0,40343.0,0.50025093]
[1610167433804,0.36362146,40344.0,40343.0,3.68165093]
[1610167434003,1.41654077,40351.0,40343.0,3.68165093]
[1610167434203,0.66298406,40351.0,40343.0,3.68165093]
[1610167434405,0.66298406,40351.0,40344.0,0.5]
[1610167434607,0.66282025,40353.0,40344.0,0.50025086]
[1610167434806,0.66280651,40354.0,40345.0,0.50025086]
[1610167435004,0.66280651,40354.0,40345.0,0.00025086]
[1610167435204,0.66280651,40354.0,40346.0,0.5]
[1610167435409,0.36356035,40352.0,40346.0,0.5]
[1610167435604,0.36356166,40353.0,40347.0,0.00025086]
[1610167435804,0.36356166,40353.0,40347.0,0.50025086]
[1610167436004,0.36356166,40353.0,40348.0,0.5]
[1610167436204,0.36356166,40353.0,40352.0,0.13632608]
[1610167436405,0.10518,40354.0,40352.0,0.63632608]
[1610167436603,0.10518,40354.0,40353.0,0.5]
[1610167436904,0.10518,40354.0,40353.0,0.50025084]
[1610167437404,0.46873811,40354.0,40353.0,0.50025084]
[1610167438507,0.3302171,40354.0,40353.0,0.50025084]
[1610167438915,0.69378188,40354.0,40353.0,0.50025084]
[1610167439307,1.35593465,40354.0,40353.0,0.50025084]
[1610167439507,1.34363465,40354.0,40353.0,0.50025084]
[1610167440610,0.68148188,40354.0,40353.0,0.50025084]
[1610167442608,0.66968188,40354.0,40353.0,0.50025084]
[1610167442810,0.3061171,40354.0,40353.0,0.50025084]
[1610167443312,0.66968687,40354.0,40353.0,0.50025084]
[1610167443613,0.3061171,40354.0,40353.0,0.50025084]
[1610167444015,0.6696848,40354.0,40353.0,0.50025084]
[1610167444415,0.3061171,40354.0,40353.0,0.50025084]
[1610167445115,0.75729656,40354.0,40353.0,0.50025084]
[1610167445717,0.74549656,40354.0,40353.0,0.50025084]
[1610167446117,4.56669656,40354.0,40353.0,0.00025084]
[1610167446317,6.13742898,40354.0,40353.0,0.50025084]
[1610167446719,6.88937085,40354.0,40353.0,0.50025084]
[1610167447424,6.88967418,40354.0,40353.0,0.50025084]
[1610167447824,6.88967418,40354.0,40353.0,0.5]
[1610167448226,7.73199558,40354.0,40353.0,0.5]
[1610167448823,7.72039558,40354.0,40353.0,0.49848456]
[1610167451927,7.70839558,40354.0,40353.0,0.49848456]
[1610167452627,8.25008462,40354.0,40353.0,0.49848456]
[1610167454931,8.23818462,40354.0,40353.0,0.49848456]
[1610167456433,9.29173322,40354.0,40349.0,0.5]
[1610167456634,5.47053322,40354.0,40350.0,0.5]
[1610167456835,4.30509248,40351.0,40330.0,0.5]
[1610167457034,4.30509248,40351.0,40320.0,2.9545]
[1610167457234,0.10888,40334.0,40321.0,0.5]
[1610167457436,1.65608291,40331.0,40321.0,4.18695001]
[1610167457636,1.65608291,40331.0,40322.0,0.00024999]
[1610167457836,0.54199705,40324.0,40322.0,0.50024999]
[1610167458036,0.53029705,40324.0,40323.0,0.5]
[1610167458235,0.53029705,40324.0,40323.0,0.13657607]
[1610167458436,0.98198256,40324.0,40323.0,0.13657607]
[1610167458637,0.98198256,40324.0,40323.0,0.63657607]
[1610167459237,1.34585117,40324.0,40323.0,0.63657607]
[1610167460137,1.34585117,40324.0,40323.0,0.50024999]
[1610167460536,1.34585117,40324.0,40323.0,0.5]
[1610167460739,2.00820458,40324.0,40323.0,0.5]
[1610167461141,1.63283597,40324.0,40323.0,0.5]
[1610167461338,1.99671838,40324.0,40323.0,0.5]
[1610167462642,1.54503287,40324.0,40323.0,0.5]
[1610167463242,1.65908287,40324.0,40323.0,0.5]
[1610167463444,2.11062386,40324.0,40323.0,0.5]
[1610167463646,1.74674145,40324.0,40323.0,0.5]
[1610167464044,2.0986301,40324.0,40323.0,0.5]
[1610167467251,2.0866301,40324.0,40323.0,0.5]
[1610167468351,2.0866301,40324.0,40323.0,0.63632608]
[1610167469753,1.42427669,40324.0,40323.0,0.63632608]
[1610167470353,0.56559099,40324.0,40323.0,0.63632608]
[1610167470754,0.11405,40324.0,40323.0,0.63657605]
[1610167471454,0.45087757,40326.0,40323.0,0.63657605]
[1610167471654,0.00315492,40324.0,40323.0,0.13657605]
[1610167471853,0.13009492,40324.0,40323.0,0.63632608]
[1610167472053,0.13009492,40324.0,40323.0,4.26167604]
[1610167472454,0.12694,40324.0,40323.0,4.26167604]
[1610167472855,0.12694,40324.0,40323.0,4.28340473]
[1610167473456,0.12644,40324.0,40323.0,4.28340473]
[1610167473656,0.10888,40334.0,40323.0,4.28340473]
[1610167473857,0.00315381,40339.0,40324.0,0.5]
[1610167474257,0.00315381,40339.0,40325.0,0.00024989]
[1610167474457,0.00315381,40339.0,40338.0,0.13632608]
[1610167474656,0.00315381,40339.0,40338.0,0.63632608]
[1610167475057,0.00315381,40339.0,40338.0,0.63657597]
[1610167475960,0.00315386,40340.0,40338.0,0.63657597]
[1610167476260,0.00315386,40340.0,40339.0,0.50024989]
[1610167476663,0.57827674,40342.0,40339.0,0.50024989]
[1610167476862,0.57827674,40342.0,40340.0,0.5]
[1610167477062,0.57827674,40342.0,40340.0,0.50024988]
[1610167477463,0.57827674,40342.0,40341.0,0.00024988]
[1610167477864,0.57827674,40342.0,40341.0,4.3973]
[1610167478272,0.57827674,40342.0,40341.0,0.50024988]
[1610167478667,0.57827674,40342.0,40341.0,0.5]
[1610167479272,1.12107674,40342.0,40341.0,0.5]
[1610167479567,1.48479594,40342.0,40341.0,0.5]
[1610167480167,1.47169594,40342.0,40341.0,0.5]
[1610167480567,2.13277307,40342.0,40341.0,0.5]
[1610167481369,2.88403243,40342.0,40341.0,0.5]
[1610167481873,2.13277307,40342.0,40341.0,0.5]
[1610167482972,2.21873307,40342.0,40341.0,0.5]
[1610167483373,2.10425313,40342.0,40341.0,0.5]
[1610167484375,2.24057921,40342.0,40341.0,0.5]
[1610167484773,2.24057921,40342.0,40315.0,4.15354]
[1610167484973,2.44906353,40342.0,40315.0,0.09444]
[1610167485173,3.7989,40338.0,40337.0,0.5]
[1610167485373,3.7989,40338.0,40266.0,1.5]
[1610167485374,0.45086357,40327.0,40316.0,0.50024997]
[1610167485574,0.54111357,40327.0,40326.0,0.5]
[1610167485775,0.54111357,40327.0,40265.0,0.1556]
[1610167485776,0.45089711,40324.0,40317.0,0.50025002]
[1610167485975,0.45089711,40324.0,40289.0,3.9811]
[1610167486176,3.6754,40316.0,40289.0,3.9811]
[1610167486377,3.6635,40316.0,40315.0,0.13632608]
[1610167486777,3.6635,40316.0,40315.0,0.13657609]
[1610167486978,3.6635,40316.0,40315.0,0.63657609]
[1610167488480,3.79982608,40316.0,40315.0,0.63657609]
[1610167489883,3.78672608,40316.0,40315.0,0.63657609]
[1610167490882,0.10498,40318.0,40315.0,0.63657609]
[1610167491284,0.4507678,40324.0,40316.0,0.50025001]
[1610167491684,0.4507678,40324.0,40317.0,0.5]
[1610167491885,0.4507678,40324.0,40317.0,0.50025005]